{"text_format":"3","workbook":"xlsx","n_sheets":3,"sheets":["Расписание","Ввод данных","Поиск имени"],"not_rendered":{"defined_names":5},"read":"whole","date_system":"1900"}

{"sheet":"Расписание","index":0,"n_rows":23,"n_cols":9,"rows_kept":23,"merged":[[1,1,2,4]]}
[]
[null,"РАСПИСАНИЕ НА ОТДЕЛЬНЫЕ ДНИ",{"$nulls":4},"На неделю ","Показать расписание для: "]
[{"$nulls":5},{"$f":"WEEKDAY(Неделя,1)","v":3},"2012-07-03","Виктор"]
[null,null,{"$f":"$F$3=COLUMN(A$1)","v":false},{"$f":"$F$3=COLUMN(B$1)","v":false},true,false,false,false,false]
[null,null,{"$f":"COLUMN(A$1)-MATCH(TRUE,$C$4:$I$4,0)+Неделя+1","v":"2012-07-02"},"2012-07-03","2012-07-04","2012-07-05","2012-07-06","2012-07-07","2012-07-08"]
[null,"ВРЕМЯ","ПОНЕДЕЛЬНИК","ВТОРНИК","СРЕДА","ЧЕТВЕРГ","ПЯТНИЦА","СУББОТА","ВОСКРЕСЕНЬЕ"]
[null,"06:00:00",{"$f":"IFERROR(INDEX(тблДанные[],MATCH(C$5+$B7&ОтображаемоеИмя,тблДанные[ДАТА И ВРЕМЯ]&тблДанные[ЛИЦО],0),3),\"\")","v":""},{"$f":"IFERROR(INDEX(тблДанные[],MATCH(D$5+$B7&ОтображаемоеИмя,тблДанные[ДАТА И ВРЕМЯ]&тблДанные[ЛИЦО],0),3),\"\")","v":""},{"$f":"IFERROR(INDEX(тблДанные[],MATCH(E$5+$B7&ОтображаемоеИмя,тблДанные[ДАТА И ВРЕМЯ]&тблДанные[ЛИЦО],0),3),\"\")","v":""},{"$f":"IFERROR(INDEX(тблДанные[],MATCH(F$5+$B7&ОтображаемоеИмя,тблДанные[ДАТА И ВРЕМЯ]&тблДанные[ЛИЦО],0),3),\"\")","v":""},{"$f":"IFERROR(INDEX(тблДанные[],MATCH(G$5+$B7&ОтображаемоеИмя,тблДанные[ДАТА И ВРЕМЯ]&тблДанные[ЛИЦО],0),3),\"\")","v":""},{"$f":"IFERROR(INDEX(тблДанные[],MATCH(H$5+$B7&ОтображаемоеИмя,тблДанные[ДАТА И ВРЕМЯ]&тблДанные[ЛИЦО],0),3),\"\")","v":""},{"$f":"IFERROR(INDEX(тблДанные[],MATCH(I$5+$B7&ОтображаемоеИмя,тблДанные[ДАТА И ВРЕМЯ]&тблДанные[ЛИЦО],0),3),\"\")","v":""}]
[null,"07:00:00",{"$f":"IFERROR(INDEX(тблДанные[],MATCH(C$5+$B8&ОтображаемоеИмя,тблДанные[ДАТА И ВРЕМЯ]&тблДанные[ЛИЦО],0),3),\"\")","v":""},{"$f":"IFERROR(INDEX(тблДанные[],MATCH(D$5+$B8&ОтображаемоеИмя,тблДанные[ДАТА И ВРЕМЯ]&тблДанные[ЛИЦО],0),3),\"\")","v":""},{"$f":"IFERROR(INDEX(тблДанные[],MATCH(E$5+$B8&ОтображаемоеИмя,тблДанные[ДАТА И ВРЕМЯ]&тблДанные[ЛИЦО],0),3),\"\")","v":""},{"$f":"IFERROR(INDEX(тблДанные[],MATCH(F$5+$B8&ОтображаемоеИмя,тблДанные[ДАТА И ВРЕМЯ]&тблДанные[ЛИЦО],0),3),\"\")","v":""},{"$f":"IFERROR(INDEX(тблДанные[],MATCH(G$5+$B8&ОтображаемоеИмя,тблДанные[ДАТА И ВРЕМЯ]&тблДанные[ЛИЦО],0),3),\"\")","v":""},{"$f":"IFERROR(INDEX(тблДанные[],MATCH(H$5+$B8&ОтображаемоеИмя,тблДанные[ДАТА И ВРЕМЯ]&тблДанные[ЛИЦО],0),3),\"\")","v":""},{"$f":"IFERROR(INDEX(тблДанные[],MATCH(I$5+$B8&ОтображаемоеИмя,тблДанные[ДАТА И ВРЕМЯ]&тблДанные[ЛИЦО],0),3),\"\")","v":""}]
[null,"08:00:00",{"$f":"IFERROR(INDEX(тблДанные[],MATCH(C$5+$B9&ОтображаемоеИмя,тблДанные[ДАТА И ВРЕМЯ]&тблДанные[ЛИЦО],0),3),\"\")","v":""},{"$f":"IFERROR(INDEX(тблДанные[],MATCH(D$5+$B9&ОтображаемоеИмя,тблДанные[ДАТА И ВРЕМЯ]&тблДанные[ЛИЦО],0),3),\"\")","v":""},{"$f":"IFERROR(INDEX(тблДанные[],MATCH(E$5+$B9&ОтображаемоеИмя,тблДанные[ДАТА И ВРЕМЯ]&тблДанные[ЛИЦО],0),3),\"\")","v":""},{"$f":"IFERROR(INDEX(тблДанные[],MATCH(F$5+$B9&ОтображаемоеИмя,тблДанные[ДАТА И ВРЕМЯ]&тблДанные[ЛИЦО],0),3),\"\")","v":""},{"$f":"IFERROR(INDEX(тблДанные[],MATCH(G$5+$B9&ОтображаемоеИмя,тблДанные[ДАТА И ВРЕМЯ]&тблДанные[ЛИЦО],0),3),\"\")","v":""},{"$f":"IFERROR(INDEX(тблДанные[],MATCH(H$5+$B9&ОтображаемоеИмя,тблДанные[ДАТА И ВРЕМЯ]&тблДанные[ЛИЦО],0),3),\"\")","v":""},{"$f":"IFERROR(INDEX(тблДанные[],MATCH(I$5+$B9&ОтображаемоеИмя,тблДанные[ДАТА И ВРЕМЯ]&тблДанные[ЛИЦО],0),3),\"\")","v":""}]
[null,"09:00:00",{"$f":"IFERROR(INDEX(тблДанные[],MATCH(C$5+$B10&ОтображаемоеИмя,тблДанные[ДАТА И ВРЕМЯ]&тблДанные[ЛИЦО],0),3),\"\")","v":""},{"$f":"IFERROR(INDEX(тблДанные[],MATCH(D$5+$B10&ОтображаемоеИмя,тблДанные[ДАТА И ВРЕМЯ]&тблДанные[ЛИЦО],0),3),\"\")","v":""},{"$f":"IFERROR(INDEX(тблДанные[],MATCH(E$5+$B10&ОтображаемоеИмя,тблДанные[ДАТА И ВРЕМЯ]&тблДанные[ЛИЦО],0),3),\"\")","v":""},{"$f":"IFERROR(INDEX(тблДанные[],MATCH(F$5+$B10&ОтображаемоеИмя,тблДанные[ДАТА И ВРЕМЯ]&тблДанные[ЛИЦО],0),3),\"\")","v":""},{"$f":"IFERROR(INDEX(тблДанные[],MATCH(G$5+$B10&ОтображаемоеИмя,тблДанные[ДАТА И ВРЕМЯ]&тблДанные[ЛИЦО],0),3),\"\")","v":""},{"$f":"IFERROR(INDEX(тблДанные[],MATCH(H$5+$B10&ОтображаемоеИмя,тблДанные[ДАТА И ВРЕМЯ]&тблДанные[ЛИЦО],0),3),\"\")","v":""},{"$f":"IFERROR(INDEX(тблДанные[],MATCH(I$5+$B10&ОтображаемоеИмя,тблДанные[ДАТА И ВРЕМЯ]&тблДанные[ЛИЦО],0),3),\"\")","v":""}]
[null,"10:00:00",{"$f":"IFERROR(INDEX(тблДанные[],MATCH(C$5+$B11&ОтображаемоеИмя,тблДанные[ДАТА И ВРЕМЯ]&тблДанные[ЛИЦО],0),3),\"\")","v":""},{"$f":"IFERROR(INDEX(тблДанные[],MATCH(D$5+$B11&ОтображаемоеИмя,тблДанные[ДАТА И ВРЕМЯ]&тблДанные[ЛИЦО],0),3),\"\")","v":""},{"$f":"IFERROR(INDEX(тблДанные[],MATCH(E$5+$B11&ОтображаемоеИмя,тблДанные[ДАТА И ВРЕМЯ]&тблДанные[ЛИЦО],0),3),\"\")","v":"Парад в центре города"},{"$f":"IFERROR(INDEX(тблДанные[],MATCH(F$5+$B11&ОтображаемоеИмя,тблДанные[ДАТА И ВРЕМЯ]&тблДанные[ЛИЦО],0),3),\"\")","v":""},{"$f":"IFERROR(INDEX(тблДанные[],MATCH(G$5+$B11&ОтображаемоеИмя,тблДанные[ДАТА И ВРЕМЯ]&тблДанные[ЛИЦО],0),3),\"\")","v":""},{"$f":"IFERROR(INDEX(тблДанные[],MATCH(H$5+$B11&ОтображаемоеИмя,тблДанные[ДАТА И ВРЕМЯ]&тблДанные[ЛИЦО],0),3),\"\")","v":""},{"$f":"IFERROR(INDEX(тблДанные[],MATCH(I$5+$B11&ОтображаемоеИмя,тблДанные[ДАТА И ВРЕМЯ]&тблДанные[ЛИЦО],0),3),\"\")","v":""}]
[null,"11:00:00",{"$f":"IFERROR(INDEX(тблДанные[],MATCH(C$5+$B12&ОтображаемоеИмя,тблДанные[ДАТА И ВРЕМЯ]&тблДанные[ЛИЦО],0),3),\"\")","v":""},{"$f":"IFERROR(INDEX(тблДанные[],MATCH(D$5+$B12&ОтображаемоеИмя,тблДанные[ДАТА И ВРЕМЯ]&тблДанные[ЛИЦО],0),3),\"\")","v":""},{"$f":"IFERROR(INDEX(тблДанные[],MATCH(E$5+$B12&ОтображаемоеИмя,тблДанные[ДАТА И ВРЕМЯ]&тблДанные[ЛИЦО],0),3),\"\")","v":""},{"$f":"IFERROR(INDEX(тблДанные[],MATCH(F$5+$B12&ОтображаемоеИмя,тблДанные[ДАТА И ВРЕМЯ]&тблДанные[ЛИЦО],0),3),\"\")","v":""},{"$f":"IFERROR(INDEX(тблДанные[],MATCH(G$5+$B12&ОтображаемоеИмя,тблДанные[ДАТА И ВРЕМЯ]&тблДанные[ЛИЦО],0),3),\"\")","v":"Барбекю с семьей"},{"$f":"IFERROR(INDEX(тблДанные[],MATCH(H$5+$B12&ОтображаемоеИмя,тблДанные[ДАТА И ВРЕМЯ]&тблДанные[ЛИЦО],0),3),\"\")","v":""},{"$f":"IFERROR(INDEX(тблДанные[],MATCH(I$5+$B12&ОтображаемоеИмя,тблДанные[ДАТА И ВРЕМЯ]&тблДанные[ЛИЦО],0),3),\"\")","v":""}]
[null,"12:00:00",{"$f":"IFERROR(INDEX(тблДанные[],MATCH(C$5+$B13&ОтображаемоеИмя,тблДанные[ДАТА И ВРЕМЯ]&тблДанные[ЛИЦО],0),3),\"\")","v":""},{"$f":"IFERROR(INDEX(тблДанные[],MATCH(D$5+$B13&ОтображаемоеИмя,тблДанные[ДАТА И ВРЕМЯ]&тблДанные[ЛИЦО],0),3),\"\")","v":""},{"$f":"IFERROR(INDEX(тблДанные[],MATCH(E$5+$B13&ОтображаемоеИмя,тблДанные[ДАТА И ВРЕМЯ]&тблДанные[ЛИЦО],0),3),\"\")","v":""},{"$f":"IFERROR(INDEX(тблДанные[],MATCH(F$5+$B13&ОтображаемоеИмя,тблДанные[ДАТА И ВРЕМЯ]&тблДанные[ЛИЦО],0),3),\"\")","v":""},{"$f":"IFERROR(INDEX(тблДанные[],MATCH(G$5+$B13&ОтображаемоеИмя,тблДанные[ДАТА И ВРЕМЯ]&тблДанные[ЛИЦО],0),3),\"\")","v":""},{"$f":"IFERROR(INDEX(тблДанные[],MATCH(H$5+$B13&ОтображаемоеИмя,тблДанные[ДАТА И ВРЕМЯ]&тблДанные[ЛИЦО],0),3),\"\")","v":""},{"$f":"IFERROR(INDEX(тблДанные[],MATCH(I$5+$B13&ОтображаемоеИмя,тблДанные[ДАТА И ВРЕМЯ]&тблДанные[ЛИЦО],0),3),\"\")","v":""}]
[null,"13:00:00",{"$f":"IFERROR(INDEX(тблДанные[],MATCH(C$5+$B14&ОтображаемоеИмя,тблДанные[ДАТА И ВРЕМЯ]&тблДанные[ЛИЦО],0),3),\"\")","v":""},{"$f":"IFERROR(INDEX(тблДанные[],MATCH(D$5+$B14&ОтображаемоеИмя,тблДанные[ДАТА И ВРЕМЯ]&тблДанные[ЛИЦО],0),3),\"\")","v":""},{"$f":"IFERROR(INDEX(тблДанные[],MATCH(E$5+$B14&ОтображаемоеИмя,тблДанные[ДАТА И ВРЕМЯ]&тблДанные[ЛИЦО],0),3),\"\")","v":""},{"$f":"IFERROR(INDEX(тблДанные[],MATCH(F$5+$B14&ОтображаемоеИмя,тблДанные[ДАТА И ВРЕМЯ]&тблДанные[ЛИЦО],0),3),\"\")","v":""},{"$f":"IFERROR(INDEX(тблДанные[],MATCH(G$5+$B14&ОтображаемоеИмя,тблДанные[ДАТА И ВРЕМЯ]&тблДанные[ЛИЦО],0),3),\"\")","v":""},{"$f":"IFERROR(INDEX(тблДанные[],MATCH(H$5+$B14&ОтображаемоеИмя,тблДанные[ДАТА И ВРЕМЯ]&тблДанные[ЛИЦО],0),3),\"\")","v":""},{"$f":"IFERROR(INDEX(тблДанные[],MATCH(I$5+$B14&ОтображаемоеИмя,тблДанные[ДАТА И ВРЕМЯ]&тблДанные[ЛИЦО],0),3),\"\")","v":""}]
[null,"14:00:00",{"$f":"IFERROR(INDEX(тблДанные[],MATCH(C$5+$B15&ОтображаемоеИмя,тблДанные[ДАТА И ВРЕМЯ]&тблДанные[ЛИЦО],0),3),\"\")","v":""},{"$f":"IFERROR(INDEX(тблДанные[],MATCH(D$5+$B15&ОтображаемоеИмя,тблДанные[ДАТА И ВРЕМЯ]&тблДанные[ЛИЦО],0),3),\"\")","v":""},{"$f":"IFERROR(INDEX(тблДанные[],MATCH(E$5+$B15&ОтображаемоеИмя,тблДанные[ДАТА И ВРЕМЯ]&тблДанные[ЛИЦО],0),3),\"\")","v":""},{"$f":"IFERROR(INDEX(тблДанные[],MATCH(F$5+$B15&ОтображаемоеИмя,тблДанные[ДАТА И ВРЕМЯ]&тблДанные[ЛИЦО],0),3),\"\")","v":""},{"$f":"IFERROR(INDEX(тблДанные[],MATCH(G$5+$B15&ОтображаемоеИмя,тблДанные[ДАТА И ВРЕМЯ]&тблДанные[ЛИЦО],0),3),\"\")","v":""},{"$f":"IFERROR(INDEX(тблДанные[],MATCH(H$5+$B15&ОтображаемоеИмя,тблДанные[ДАТА И ВРЕМЯ]&тблДанные[ЛИЦО],0),3),\"\")","v":""},{"$f":"IFERROR(INDEX(тблДанные[],MATCH(I$5+$B15&ОтображаемоеИмя,тблДанные[ДАТА И ВРЕМЯ]&тблДанные[ЛИЦО],0),3),\"\")","v":""}]
[null,"15:00:00",{"$f":"IFERROR(INDEX(тблДанные[],MATCH(C$5+$B16&ОтображаемоеИмя,тблДанные[ДАТА И ВРЕМЯ]&тблДанные[ЛИЦО],0),3),\"\")","v":""},{"$f":"IFERROR(INDEX(тблДанные[],MATCH(D$5+$B16&ОтображаемоеИмя,тблДанные[ДАТА И ВРЕМЯ]&тблДанные[ЛИЦО],0),3),\"\")","v":""},{"$f":"IFERROR(INDEX(тблДанные[],MATCH(E$5+$B16&ОтображаемоеИмя,тблДанные[ДАТА И ВРЕМЯ]&тблДанные[ЛИЦО],0),3),\"\")","v":""},{"$f":"IFERROR(INDEX(тблДанные[],MATCH(F$5+$B16&ОтображаемоеИмя,тблДанные[ДАТА И ВРЕМЯ]&тблДанные[ЛИЦО],0),3),\"\")","v":""},{"$f":"IFERROR(INDEX(тблДанные[],MATCH(G$5+$B16&ОтображаемоеИмя,тблДанные[ДАТА И ВРЕМЯ]&тблДанные[ЛИЦО],0),3),\"\")","v":""},{"$f":"IFERROR(INDEX(тблДанные[],MATCH(H$5+$B16&ОтображаемоеИмя,тблДанные[ДАТА И ВРЕМЯ]&тблДанные[ЛИЦО],0),3),\"\")","v":""},{"$f":"IFERROR(INDEX(тблДанные[],MATCH(I$5+$B16&ОтображаемоеИмя,тблДанные[ДАТА И ВРЕМЯ]&тблДанные[ЛИЦО],0),3),\"\")","v":""}]
[null,"16:00:00",{"$f":"IFERROR(INDEX(тблДанные[],MATCH(C$5+$B17&ОтображаемоеИмя,тблДанные[ДАТА И ВРЕМЯ]&тблДанные[ЛИЦО],0),3),\"\")","v":""},{"$f":"IFERROR(INDEX(тблДанные[],MATCH(D$5+$B17&ОтображаемоеИмя,тблДанные[ДАТА И ВРЕМЯ]&тблДанные[ЛИЦО],0),3),\"\")","v":"Отъезд"},{"$f":"IFERROR(INDEX(тблДанные[],MATCH(E$5+$B17&ОтображаемоеИмя,тблДанные[ДАТА И ВРЕМЯ]&тблДанные[ЛИЦО],0),3),\"\")","v":""},{"$f":"IFERROR(INDEX(тблДанные[],MATCH(F$5+$B17&ОтображаемоеИмя,тблДанные[ДАТА И ВРЕМЯ]&тблДанные[ЛИЦО],0),3),\"\")","v":""},{"$f":"IFERROR(INDEX(тблДанные[],MATCH(G$5+$B17&ОтображаемоеИмя,тблДанные[ДАТА И ВРЕМЯ]&тблДанные[ЛИЦО],0),3),\"\")","v":""},{"$f":"IFERROR(INDEX(тблДанные[],MATCH(H$5+$B17&ОтображаемоеИмя,тблДанные[ДАТА И ВРЕМЯ]&тблДанные[ЛИЦО],0),3),\"\")","v":""},{"$f":"IFERROR(INDEX(тблДанные[],MATCH(I$5+$B17&ОтображаемоеИмя,тблДанные[ДАТА И ВРЕМЯ]&тблДанные[ЛИЦО],0),3),\"\")","v":""}]
[null,"17:00:00",{"$f":"IFERROR(INDEX(тблДанные[],MATCH(C$5+$B18&ОтображаемоеИмя,тблДанные[ДАТА И ВРЕМЯ]&тблДанные[ЛИЦО],0),3),\"\")","v":""},{"$f":"IFERROR(INDEX(тблДанные[],MATCH(D$5+$B18&ОтображаемоеИмя,тблДанные[ДАТА И ВРЕМЯ]&тблДанные[ЛИЦО],0),3),\"\")","v":""},{"$f":"IFERROR(INDEX(тблДанные[],MATCH(E$5+$B18&ОтображаемоеИмя,тблДанные[ДАТА И ВРЕМЯ]&тблДанные[ЛИЦО],0),3),\"\")","v":""},{"$f":"IFERROR(INDEX(тблДанные[],MATCH(F$5+$B18&ОтображаемоеИмя,тблДанные[ДАТА И ВРЕМЯ]&тблДанные[ЛИЦО],0),3),\"\")","v":""},{"$f":"IFERROR(INDEX(тблДанные[],MATCH(G$5+$B18&ОтображаемоеИмя,тблДанные[ДАТА И ВРЕМЯ]&тблДанные[ЛИЦО],0),3),\"\")","v":""},{"$f":"IFERROR(INDEX(тблДанные[],MATCH(H$5+$B18&ОтображаемоеИмя,тблДанные[ДАТА И ВРЕМЯ]&тблДанные[ЛИЦО],0),3),\"\")","v":""},{"$f":"IFERROR(INDEX(тблДанные[],MATCH(I$5+$B18&ОтображаемоеИмя,тблДанные[ДАТА И ВРЕМЯ]&тблДанные[ЛИЦО],0),3),\"\")","v":"Возвращение домой"}]
[null,"18:00:00",{"$f":"IFERROR(INDEX(тблДанные[],MATCH(C$5+$B19&ОтображаемоеИмя,тблДанные[ДАТА И ВРЕМЯ]&тблДанные[ЛИЦО],0),3),\"\")","v":"Прием лекарств"},{"$f":"IFERROR(INDEX(тблДанные[],MATCH(D$5+$B19&ОтображаемоеИмя,тблДанные[ДАТА И ВРЕМЯ]&тблДанные[ЛИЦО],0),3),\"\")","v":""},{"$f":"IFERROR(INDEX(тблДанные[],MATCH(E$5+$B19&ОтображаемоеИмя,тблДанные[ДАТА И ВРЕМЯ]&тблДанные[ЛИЦО],0),3),\"\")","v":""},{"$f":"IFERROR(INDEX(тблДанные[],MATCH(F$5+$B19&ОтображаемоеИмя,тблДанные[ДАТА И ВРЕМЯ]&тблДанные[ЛИЦО],0),3),\"\")","v":""},{"$f":"IFERROR(INDEX(тблДанные[],MATCH(G$5+$B19&ОтображаемоеИмя,тблДанные[ДАТА И ВРЕМЯ]&тблДанные[ЛИЦО],0),3),\"\")","v":""},{"$f":"IFERROR(INDEX(тблДанные[],MATCH(H$5+$B19&ОтображаемоеИмя,тблДанные[ДАТА И ВРЕМЯ]&тблДанные[ЛИЦО],0),3),\"\")","v":""},{"$f":"IFERROR(INDEX(тблДанные[],MATCH(I$5+$B19&ОтображаемоеИмя,тблДанные[ДАТА И ВРЕМЯ]&тблДанные[ЛИЦО],0),3),\"\")","v":""}]
[null,"19:00:00",{"$f":"IFERROR(INDEX(тблДанные[],MATCH(C$5+$B20&ОтображаемоеИмя,тблДанные[ДАТА И ВРЕМЯ]&тблДанные[ЛИЦО],0),3),\"\")","v":""},{"$f":"IFERROR(INDEX(тблДанные[],MATCH(D$5+$B20&ОтображаемоеИмя,тблДанные[ДАТА И ВРЕМЯ]&тблДанные[ЛИЦО],0),3),\"\")","v":""},{"$f":"IFERROR(INDEX(тблДанные[],MATCH(E$5+$B20&ОтображаемоеИмя,тблДанные[ДАТА И ВРЕМЯ]&тблДанные[ЛИЦО],0),3),\"\")","v":""},{"$f":"IFERROR(INDEX(тблДанные[],MATCH(F$5+$B20&ОтображаемоеИмя,тблДанные[ДАТА И ВРЕМЯ]&тблДанные[ЛИЦО],0),3),\"\")","v":""},{"$f":"IFERROR(INDEX(тблДанные[],MATCH(G$5+$B20&ОтображаемоеИмя,тблДанные[ДАТА И ВРЕМЯ]&тблДанные[ЛИЦО],0),3),\"\")","v":""},{"$f":"IFERROR(INDEX(тблДанные[],MATCH(H$5+$B20&ОтображаемоеИмя,тблДанные[ДАТА И ВРЕМЯ]&тблДанные[ЛИЦО],0),3),\"\")","v":""},{"$f":"IFERROR(INDEX(тблДанные[],MATCH(I$5+$B20&ОтображаемоеИмя,тблДанные[ДАТА И ВРЕМЯ]&тблДанные[ЛИЦО],0),3),\"\")","v":""}]
[null,"20:00:00",{"$f":"IFERROR(INDEX(тблДанные[],MATCH(C$5+$B21&ОтображаемоеИмя,тблДанные[ДАТА И ВРЕМЯ]&тблДанные[ЛИЦО],0),3),\"\")","v":"Поход в кино с семьей"},{"$f":"IFERROR(INDEX(тблДанные[],MATCH(D$5+$B21&ОтображаемоеИмя,тблДанные[ДАТА И ВРЕМЯ]&тблДанные[ЛИЦО],0),3),\"\")","v":""},{"$f":"IFERROR(INDEX(тблДанные[],MATCH(E$5+$B21&ОтображаемоеИмя,тблДанные[ДАТА И ВРЕМЯ]&тблДанные[ЛИЦО],0),3),\"\")","v":""},{"$f":"IFERROR(INDEX(тблДанные[],MATCH(F$5+$B21&ОтображаемоеИмя,тблДанные[ДАТА И ВРЕМЯ]&тблДанные[ЛИЦО],0),3),\"\")","v":"Фейерверк"},{"$f":"IFERROR(INDEX(тблДанные[],MATCH(G$5+$B21&ОтображаемоеИмя,тблДанные[ДАТА И ВРЕМЯ]&тблДанные[ЛИЦО],0),3),\"\")","v":""},{"$f":"IFERROR(INDEX(тблДанные[],MATCH(H$5+$B21&ОтображаемоеИмя,тблДанные[ДАТА И ВРЕМЯ]&тблДанные[ЛИЦО],0),3),\"\")","v":""},{"$f":"IFERROR(INDEX(тблДанные[],MATCH(I$5+$B21&ОтображаемоеИмя,тблДанные[ДАТА И ВРЕМЯ]&тблДанные[ЛИЦО],0),3),\"\")","v":""}]
[null,"21:00:00",{"$f":"IFERROR(INDEX(тблДанные[],MATCH(C$5+$B22&ОтображаемоеИмя,тблДанные[ДАТА И ВРЕМЯ]&тблДанные[ЛИЦО],0),3),\"\")","v":""},{"$f":"IFERROR(INDEX(тблДанные[],MATCH(D$5+$B22&ОтображаемоеИмя,тблДанные[ДАТА И ВРЕМЯ]&тблДанные[ЛИЦО],0),3),\"\")","v":""},{"$f":"IFERROR(INDEX(тблДанные[],MATCH(E$5+$B22&ОтображаемоеИмя,тблДанные[ДАТА И ВРЕМЯ]&тблДанные[ЛИЦО],0),3),\"\")","v":""},{"$f":"IFERROR(INDEX(тблДанные[],MATCH(F$5+$B22&ОтображаемоеИмя,тблДанные[ДАТА И ВРЕМЯ]&тблДанные[ЛИЦО],0),3),\"\")","v":""},{"$f":"IFERROR(INDEX(тблДанные[],MATCH(G$5+$B22&ОтображаемоеИмя,тблДанные[ДАТА И ВРЕМЯ]&тблДанные[ЛИЦО],0),3),\"\")","v":""},{"$f":"IFERROR(INDEX(тблДанные[],MATCH(H$5+$B22&ОтображаемоеИмя,тблДанные[ДАТА И ВРЕМЯ]&тблДанные[ЛИЦО],0),3),\"\")","v":""},{"$f":"IFERROR(INDEX(тблДанные[],MATCH(I$5+$B22&ОтображаемоеИмя,тблДанные[ДАТА И ВРЕМЯ]&тблДанные[ЛИЦО],0),3),\"\")","v":""}]
[null,"22:00:00",{"$f":"IFERROR(INDEX(тблДанные[],MATCH(C$5+$B23&ОтображаемоеИмя,тблДанные[ДАТА И ВРЕМЯ]&тблДанные[ЛИЦО],0),3),\"\")","v":""},{"$f":"IFERROR(INDEX(тблДанные[],MATCH(D$5+$B23&ОтображаемоеИмя,тблДанные[ДАТА И ВРЕМЯ]&тблДанные[ЛИЦО],0),3),\"\")","v":""},{"$f":"IFERROR(INDEX(тблДанные[],MATCH(E$5+$B23&ОтображаемоеИмя,тблДанные[ДАТА И ВРЕМЯ]&тблДанные[ЛИЦО],0),3),\"\")","v":""},{"$f":"IFERROR(INDEX(тблДанные[],MATCH(F$5+$B23&ОтображаемоеИмя,тблДанные[ДАТА И ВРЕМЯ]&тблДанные[ЛИЦО],0),3),\"\")","v":""},{"$f":"IFERROR(INDEX(тблДанные[],MATCH(G$5+$B23&ОтображаемоеИмя,тблДанные[ДАТА И ВРЕМЯ]&тблДанные[ЛИЦО],0),3),\"\")","v":""},{"$f":"IFERROR(INDEX(тблДанные[],MATCH(H$5+$B23&ОтображаемоеИмя,тблДанные[ДАТА И ВРЕМЯ]&тблДанные[ЛИЦО],0),3),\"\")","v":""},{"$f":"IFERROR(INDEX(тблДанные[],MATCH(I$5+$B23&ОтображаемоеИмя,тблДанные[ДАТА И ВРЕМЯ]&тблДанные[ЛИЦО],0),3),\"\")","v":""}]

{"sheet":"Ввод данных","index":1,"n_rows":14,"n_cols":4,"rows_kept":14}
[null,"ВВОД ДАННЫХ"]
[]
[null,"ДАТА И ВРЕМЯ","ЛИЦО","ЗАДАЧА"]
[null,"2012-07-02T08:00:00","Анна","Встреча с врачом"]
[null,"2012-07-02T18:00:00","Виктор","Прием лекарств"]
[null,"2012-07-02T18:30:00","Виктор","Обед с Ириной"]
[null,"2012-07-02T20:00:00","Виктор","Поход в кино с семьей"]
[null,"2012-07-03T16:00:00","Виктор","Отъезд"]
[null,"2012-07-04T10:00:00","Виктор","Парад в центре города"]
[null,"2012-07-05T20:00:00","Виктор","Фейерверк"]
[null,"2012-07-06T11:00:00","Виктор","Барбекю с семьей"]
[null,"2012-07-07","Виктор","Пикник с участниками сообщества"]
[null,"2012-07-08T17:00:00","Виктор","Возвращение домой"]
[null,"2012-07-02T10:00:00","Анна","Уроки игры на пианино"]

{"sheet":"Поиск имени","index":2,"n_rows":132,"n_cols":2,"rows_kept":132,"hidden":true,"merged":[[0,0,0,1]]}
["Этот лист используется для заполнения раскрывающегося списка имен на листе расписания в ячейке H3. Изменение значений на этом листе может привести к ошибке."]
["УНИКАЛЬНОЕ ИМЯ","НОМЕР СТРОКИ"]
[{"$f":"IFERROR(INDEX(ПолеКто,MATCH(0,COUNTIF($A$2:A2,ПолеКто),0)),\"\")","v":"Анна"},{"$f":"IF(A3=\"\",\"\",ROW())","v":3}]
[{"$f":"IFERROR(INDEX(ПолеКто,MATCH(0,COUNTIF($A$2:A3,ПолеКто),0)),\"\")","v":"Виктор"},{"$f":"IF(A4=\"\",\"\",ROW())","v":4}]
[{"$f":"IFERROR(INDEX(ПолеКто,MATCH(0,COUNTIF($A$2:A4,ПолеКто),0)),\"\")","v":""},""]
[{"$f":"IFERROR(INDEX(ПолеКто,MATCH(0,COUNTIF($A$2:A5,ПолеКто),0)),\"\")","v":""},""]
[{"$f":"IFERROR(INDEX(ПолеКто,MATCH(0,COUNTIF($A$2:A6,ПолеКто),0)),\"\")","v":""},""]
[{"$f":"IFERROR(INDEX(ПолеКто,MATCH(0,COUNTIF($A$2:A7,ПолеКто),0)),\"\")","v":""},""]
[{"$f":"IFERROR(INDEX(ПолеКто,MATCH(0,COUNTIF($A$2:A8,ПолеКто),0)),\"\")","v":""},""]
[{"$f":"IFERROR(INDEX(ПолеКто,MATCH(0,COUNTIF($A$2:A9,ПолеКто),0)),\"\")","v":""},""]
[{"$f":"IFERROR(INDEX(ПолеКто,MATCH(0,COUNTIF($A$2:A10,ПолеКто),0)),\"\")","v":""},""]
[{"$f":"IFERROR(INDEX(ПолеКто,MATCH(0,COUNTIF($A$2:A11,ПолеКто),0)),\"\")","v":""},""]
[{"$f":"IFERROR(INDEX(ПолеКто,MATCH(0,COUNTIF($A$2:A12,ПолеКто),0)),\"\")","v":""},""]
[{"$f":"IFERROR(INDEX(ПолеКто,MATCH(0,COUNTIF($A$2:A13,ПолеКто),0)),\"\")","v":""},""]
[{"$f":"IFERROR(INDEX(ПолеКто,MATCH(0,COUNTIF($A$2:A14,ПолеКто),0)),\"\")","v":""},""]
[{"$f":"IFERROR(INDEX(ПолеКто,MATCH(0,COUNTIF($A$2:A15,ПолеКто),0)),\"\")","v":""},""]
[{"$f":"IFERROR(INDEX(ПолеКто,MATCH(0,COUNTIF($A$2:A16,ПолеКто),0)),\"\")","v":""},""]
[{"$f":"IFERROR(INDEX(ПолеКто,MATCH(0,COUNTIF($A$2:A17,ПолеКто),0)),\"\")","v":""},""]
[{"$f":"IFERROR(INDEX(ПолеКто,MATCH(0,COUNTIF($A$2:A18,ПолеКто),0)),\"\")","v":""},""]
[{"$f":"IFERROR(INDEX(ПолеКто,MATCH(0,COUNTIF($A$2:A19,ПолеКто),0)),\"\")","v":""},""]
[{"$f":"IFERROR(INDEX(ПолеКто,MATCH(0,COUNTIF($A$2:A20,ПолеКто),0)),\"\")","v":""},""]
[{"$f":"IFERROR(INDEX(ПолеКто,MATCH(0,COUNTIF($A$2:A21,ПолеКто),0)),\"\")","v":""},""]
[{"$f":"IFERROR(INDEX(ПолеКто,MATCH(0,COUNTIF($A$2:A22,ПолеКто),0)),\"\")","v":""},""]
[{"$f":"IFERROR(INDEX(ПолеКто,MATCH(0,COUNTIF($A$2:A23,ПолеКто),0)),\"\")","v":""},""]
[{"$f":"IFERROR(INDEX(ПолеКто,MATCH(0,COUNTIF($A$2:A24,ПолеКто),0)),\"\")","v":""},""]
[{"$f":"IFERROR(INDEX(ПолеКто,MATCH(0,COUNTIF($A$2:A25,ПолеКто),0)),\"\")","v":""},""]
[{"$f":"IFERROR(INDEX(ПолеКто,MATCH(0,COUNTIF($A$2:A26,ПолеКто),0)),\"\")","v":""},""]
[{"$f":"IFERROR(INDEX(ПолеКто,MATCH(0,COUNTIF($A$2:A27,ПолеКто),0)),\"\")","v":""},""]
[{"$f":"IFERROR(INDEX(ПолеКто,MATCH(0,COUNTIF($A$2:A28,ПолеКто),0)),\"\")","v":""},""]
[{"$f":"IFERROR(INDEX(ПолеКто,MATCH(0,COUNTIF($A$2:A29,ПолеКто),0)),\"\")","v":""},""]
[{"$f":"IFERROR(INDEX(ПолеКто,MATCH(0,COUNTIF($A$2:A30,ПолеКто),0)),\"\")","v":""},""]
[{"$f":"IFERROR(INDEX(ПолеКто,MATCH(0,COUNTIF($A$2:A31,ПолеКто),0)),\"\")","v":""},""]
[{"$f":"IFERROR(INDEX(ПолеКто,MATCH(0,COUNTIF($A$2:A32,ПолеКто),0)),\"\")","v":""},""]
[{"$f":"IFERROR(INDEX(ПолеКто,MATCH(0,COUNTIF($A$2:A33,ПолеКто),0)),\"\")","v":""},""]
[{"$f":"IFERROR(INDEX(ПолеКто,MATCH(0,COUNTIF($A$2:A34,ПолеКто),0)),\"\")","v":""},""]
[{"$f":"IFERROR(INDEX(ПолеКто,MATCH(0,COUNTIF($A$2:A35,ПолеКто),0)),\"\")","v":""},""]
[{"$f":"IFERROR(INDEX(ПолеКто,MATCH(0,COUNTIF($A$2:A36,ПолеКто),0)),\"\")","v":""},""]
[{"$f":"IFERROR(INDEX(ПолеКто,MATCH(0,COUNTIF($A$2:A37,ПолеКто),0)),\"\")","v":""},""]
[{"$f":"IFERROR(INDEX(ПолеКто,MATCH(0,COUNTIF($A$2:A38,ПолеКто),0)),\"\")","v":""},""]
[{"$f":"IFERROR(INDEX(ПолеКто,MATCH(0,COUNTIF($A$2:A39,ПолеКто),0)),\"\")","v":""},""]
[{"$f":"IFERROR(INDEX(ПолеКто,MATCH(0,COUNTIF($A$2:A40,ПолеКто),0)),\"\")","v":""},""]
[{"$f":"IFERROR(INDEX(ПолеКто,MATCH(0,COUNTIF($A$2:A41,ПолеКто),0)),\"\")","v":""},""]
[{"$f":"IFERROR(INDEX(ПолеКто,MATCH(0,COUNTIF($A$2:A42,ПолеКто),0)),\"\")","v":""},""]
[{"$f":"IFERROR(INDEX(ПолеКто,MATCH(0,COUNTIF($A$2:A43,ПолеКто),0)),\"\")","v":""},""]
[{"$f":"IFERROR(INDEX(ПолеКто,MATCH(0,COUNTIF($A$2:A44,ПолеКто),0)),\"\")","v":""},""]
[{"$f":"IFERROR(INDEX(ПолеКто,MATCH(0,COUNTIF($A$2:A45,ПолеКто),0)),\"\")","v":""},""]
[{"$f":"IFERROR(INDEX(ПолеКто,MATCH(0,COUNTIF($A$2:A46,ПолеКто),0)),\"\")","v":""},""]
[{"$f":"IFERROR(INDEX(ПолеКто,MATCH(0,COUNTIF($A$2:A47,ПолеКто),0)),\"\")","v":""},""]
[{"$f":"IFERROR(INDEX(ПолеКто,MATCH(0,COUNTIF($A$2:A48,ПолеКто),0)),\"\")","v":""},""]
[{"$f":"IFERROR(INDEX(ПолеКто,MATCH(0,COUNTIF($A$2:A49,ПолеКто),0)),\"\")","v":""},""]
[{"$f":"IFERROR(INDEX(ПолеКто,MATCH(0,COUNTIF($A$2:A50,ПолеКто),0)),\"\")","v":""},""]
[{"$f":"IFERROR(INDEX(ПолеКто,MATCH(0,COUNTIF($A$2:A51,ПолеКто),0)),\"\")","v":""},""]
[{"$f":"IFERROR(INDEX(ПолеКто,MATCH(0,COUNTIF($A$2:A52,ПолеКто),0)),\"\")","v":""},""]
[{"$f":"IFERROR(INDEX(ПолеКто,MATCH(0,COUNTIF($A$2:A53,ПолеКто),0)),\"\")","v":""},""]
[{"$f":"IFERROR(INDEX(ПолеКто,MATCH(0,COUNTIF($A$2:A54,ПолеКто),0)),\"\")","v":""},""]
[{"$f":"IFERROR(INDEX(ПолеКто,MATCH(0,COUNTIF($A$2:A55,ПолеКто),0)),\"\")","v":""},""]
[{"$f":"IFERROR(INDEX(ПолеКто,MATCH(0,COUNTIF($A$2:A56,ПолеКто),0)),\"\")","v":""},""]
[{"$f":"IFERROR(INDEX(ПолеКто,MATCH(0,COUNTIF($A$2:A57,ПолеКто),0)),\"\")","v":""},""]
[{"$f":"IFERROR(INDEX(ПолеКто,MATCH(0,COUNTIF($A$2:A58,ПолеКто),0)),\"\")","v":""},""]
[{"$f":"IFERROR(INDEX(ПолеКто,MATCH(0,COUNTIF($A$2:A59,ПолеКто),0)),\"\")","v":""},""]
[{"$f":"IFERROR(INDEX(ПолеКто,MATCH(0,COUNTIF($A$2:A60,ПолеКто),0)),\"\")","v":""},""]
[{"$f":"IFERROR(INDEX(ПолеКто,MATCH(0,COUNTIF($A$2:A61,ПолеКто),0)),\"\")","v":""},""]
[{"$f":"IFERROR(INDEX(ПолеКто,MATCH(0,COUNTIF($A$2:A62,ПолеКто),0)),\"\")","v":""},""]
[{"$f":"IFERROR(INDEX(ПолеКто,MATCH(0,COUNTIF($A$2:A63,ПолеКто),0)),\"\")","v":""},""]
[{"$f":"IFERROR(INDEX(ПолеКто,MATCH(0,COUNTIF($A$2:A64,ПолеКто),0)),\"\")","v":""},""]
[{"$f":"IFERROR(INDEX(ПолеКто,MATCH(0,COUNTIF($A$2:A65,ПолеКто),0)),\"\")","v":""},""]
[{"$f":"IFERROR(INDEX(ПолеКто,MATCH(0,COUNTIF($A$2:A66,ПолеКто),0)),\"\")","v":""},""]
[{"$f":"IFERROR(INDEX(ПолеКто,MATCH(0,COUNTIF($A$2:A67,ПолеКто),0)),\"\")","v":""},{"$f":"IF(A68=\"\",\"\",ROW())","v":""}]
[{"$f":"IFERROR(INDEX(ПолеКто,MATCH(0,COUNTIF($A$2:A68,ПолеКто),0)),\"\")","v":""},""]
[{"$f":"IFERROR(INDEX(ПолеКто,MATCH(0,COUNTIF($A$2:A69,ПолеКто),0)),\"\")","v":""},""]
[{"$f":"IFERROR(INDEX(ПолеКто,MATCH(0,COUNTIF($A$2:A70,ПолеКто),0)),\"\")","v":""},""]
[{"$f":"IFERROR(INDEX(ПолеКто,MATCH(0,COUNTIF($A$2:A71,ПолеКто),0)),\"\")","v":""},""]
[{"$f":"IFERROR(INDEX(ПолеКто,MATCH(0,COUNTIF($A$2:A72,ПолеКто),0)),\"\")","v":""},""]
[{"$f":"IFERROR(INDEX(ПолеКто,MATCH(0,COUNTIF($A$2:A73,ПолеКто),0)),\"\")","v":""},""]
[{"$f":"IFERROR(INDEX(ПолеКто,MATCH(0,COUNTIF($A$2:A74,ПолеКто),0)),\"\")","v":""},""]
[{"$f":"IFERROR(INDEX(ПолеКто,MATCH(0,COUNTIF($A$2:A75,ПолеКто),0)),\"\")","v":""},""]
[{"$f":"IFERROR(INDEX(ПолеКто,MATCH(0,COUNTIF($A$2:A76,ПолеКто),0)),\"\")","v":""},""]
[{"$f":"IFERROR(INDEX(ПолеКто,MATCH(0,COUNTIF($A$2:A77,ПолеКто),0)),\"\")","v":""},""]
[{"$f":"IFERROR(INDEX(ПолеКто,MATCH(0,COUNTIF($A$2:A78,ПолеКто),0)),\"\")","v":""},""]
[{"$f":"IFERROR(INDEX(ПолеКто,MATCH(0,COUNTIF($A$2:A79,ПолеКто),0)),\"\")","v":""},""]
[{"$f":"IFERROR(INDEX(ПолеКто,MATCH(0,COUNTIF($A$2:A80,ПолеКто),0)),\"\")","v":""},""]
[{"$f":"IFERROR(INDEX(ПолеКто,MATCH(0,COUNTIF($A$2:A81,ПолеКто),0)),\"\")","v":""},""]
[{"$f":"IFERROR(INDEX(ПолеКто,MATCH(0,COUNTIF($A$2:A82,ПолеКто),0)),\"\")","v":""},""]
[{"$f":"IFERROR(INDEX(ПолеКто,MATCH(0,COUNTIF($A$2:A83,ПолеКто),0)),\"\")","v":""},""]
[{"$f":"IFERROR(INDEX(ПолеКто,MATCH(0,COUNTIF($A$2:A84,ПолеКто),0)),\"\")","v":""},""]
[{"$f":"IFERROR(INDEX(ПолеКто,MATCH(0,COUNTIF($A$2:A85,ПолеКто),0)),\"\")","v":""},""]
[{"$f":"IFERROR(INDEX(ПолеКто,MATCH(0,COUNTIF($A$2:A86,ПолеКто),0)),\"\")","v":""},""]
[{"$f":"IFERROR(INDEX(ПолеКто,MATCH(0,COUNTIF($A$2:A87,ПолеКто),0)),\"\")","v":""},""]
[{"$f":"IFERROR(INDEX(ПолеКто,MATCH(0,COUNTIF($A$2:A88,ПолеКто),0)),\"\")","v":""},""]
[{"$f":"IFERROR(INDEX(ПолеКто,MATCH(0,COUNTIF($A$2:A89,ПолеКто),0)),\"\")","v":""},""]
[{"$f":"IFERROR(INDEX(ПолеКто,MATCH(0,COUNTIF($A$2:A90,ПолеКто),0)),\"\")","v":""},""]
[{"$f":"IFERROR(INDEX(ПолеКто,MATCH(0,COUNTIF($A$2:A91,ПолеКто),0)),\"\")","v":""},""]
[{"$f":"IFERROR(INDEX(ПолеКто,MATCH(0,COUNTIF($A$2:A92,ПолеКто),0)),\"\")","v":""},""]
[{"$f":"IFERROR(INDEX(ПолеКто,MATCH(0,COUNTIF($A$2:A93,ПолеКто),0)),\"\")","v":""},""]
[{"$f":"IFERROR(INDEX(ПолеКто,MATCH(0,COUNTIF($A$2:A94,ПолеКто),0)),\"\")","v":""},""]
[{"$f":"IFERROR(INDEX(ПолеКто,MATCH(0,COUNTIF($A$2:A95,ПолеКто),0)),\"\")","v":""},""]
[{"$f":"IFERROR(INDEX(ПолеКто,MATCH(0,COUNTIF($A$2:A96,ПолеКто),0)),\"\")","v":""},""]
[{"$f":"IFERROR(INDEX(ПолеКто,MATCH(0,COUNTIF($A$2:A97,ПолеКто),0)),\"\")","v":""},""]
[{"$f":"IFERROR(INDEX(ПолеКто,MATCH(0,COUNTIF($A$2:A98,ПолеКто),0)),\"\")","v":""},""]
[{"$f":"IFERROR(INDEX(ПолеКто,MATCH(0,COUNTIF($A$2:A99,ПолеКто),0)),\"\")","v":""},""]
[{"$f":"IFERROR(INDEX(ПолеКто,MATCH(0,COUNTIF($A$2:A100,ПолеКто),0)),\"\")","v":""},""]
[{"$f":"IFERROR(INDEX(ПолеКто,MATCH(0,COUNTIF($A$2:A101,ПолеКто),0)),\"\")","v":""},""]
[{"$f":"IFERROR(INDEX(ПолеКто,MATCH(0,COUNTIF($A$2:A102,ПолеКто),0)),\"\")","v":""},""]
[{"$f":"IFERROR(INDEX(ПолеКто,MATCH(0,COUNTIF($A$2:A103,ПолеКто),0)),\"\")","v":""},""]
[{"$f":"IFERROR(INDEX(ПолеКто,MATCH(0,COUNTIF($A$2:A104,ПолеКто),0)),\"\")","v":""},""]
[{"$f":"IFERROR(INDEX(ПолеКто,MATCH(0,COUNTIF($A$2:A105,ПолеКто),0)),\"\")","v":""},""]
[{"$f":"IFERROR(INDEX(ПолеКто,MATCH(0,COUNTIF($A$2:A106,ПолеКто),0)),\"\")","v":""},""]
[{"$f":"IFERROR(INDEX(ПолеКто,MATCH(0,COUNTIF($A$2:A107,ПолеКто),0)),\"\")","v":""},""]
[{"$f":"IFERROR(INDEX(ПолеКто,MATCH(0,COUNTIF($A$2:A108,ПолеКто),0)),\"\")","v":""},""]
[{"$f":"IFERROR(INDEX(ПолеКто,MATCH(0,COUNTIF($A$2:A109,ПолеКто),0)),\"\")","v":""},""]
[{"$f":"IFERROR(INDEX(ПолеКто,MATCH(0,COUNTIF($A$2:A110,ПолеКто),0)),\"\")","v":""},""]
[{"$f":"IFERROR(INDEX(ПолеКто,MATCH(0,COUNTIF($A$2:A111,ПолеКто),0)),\"\")","v":""},""]
[{"$f":"IFERROR(INDEX(ПолеКто,MATCH(0,COUNTIF($A$2:A112,ПолеКто),0)),\"\")","v":""},""]
[{"$f":"IFERROR(INDEX(ПолеКто,MATCH(0,COUNTIF($A$2:A113,ПолеКто),0)),\"\")","v":""},""]
[{"$f":"IFERROR(INDEX(ПолеКто,MATCH(0,COUNTIF($A$2:A114,ПолеКто),0)),\"\")","v":""},""]
[{"$f":"IFERROR(INDEX(ПолеКто,MATCH(0,COUNTIF($A$2:A115,ПолеКто),0)),\"\")","v":""},""]
[{"$f":"IFERROR(INDEX(ПолеКто,MATCH(0,COUNTIF($A$2:A116,ПолеКто),0)),\"\")","v":""},""]
[{"$f":"IFERROR(INDEX(ПолеКто,MATCH(0,COUNTIF($A$2:A117,ПолеКто),0)),\"\")","v":""},""]
[{"$f":"IFERROR(INDEX(ПолеКто,MATCH(0,COUNTIF($A$2:A118,ПолеКто),0)),\"\")","v":""},""]
[{"$f":"IFERROR(INDEX(ПолеКто,MATCH(0,COUNTIF($A$2:A119,ПолеКто),0)),\"\")","v":""},""]
[{"$f":"IFERROR(INDEX(ПолеКто,MATCH(0,COUNTIF($A$2:A120,ПолеКто),0)),\"\")","v":""},""]
[{"$f":"IFERROR(INDEX(ПолеКто,MATCH(0,COUNTIF($A$2:A121,ПолеКто),0)),\"\")","v":""},""]
[{"$f":"IFERROR(INDEX(ПолеКто,MATCH(0,COUNTIF($A$2:A122,ПолеКто),0)),\"\")","v":""},""]
[{"$f":"IFERROR(INDEX(ПолеКто,MATCH(0,COUNTIF($A$2:A123,ПолеКто),0)),\"\")","v":""},""]
[{"$f":"IFERROR(INDEX(ПолеКто,MATCH(0,COUNTIF($A$2:A124,ПолеКто),0)),\"\")","v":""},""]
[{"$f":"IFERROR(INDEX(ПолеКто,MATCH(0,COUNTIF($A$2:A125,ПолеКто),0)),\"\")","v":""},""]
[{"$f":"IFERROR(INDEX(ПолеКто,MATCH(0,COUNTIF($A$2:A126,ПолеКто),0)),\"\")","v":""},""]
[{"$f":"IFERROR(INDEX(ПолеКто,MATCH(0,COUNTIF($A$2:A127,ПолеКто),0)),\"\")","v":""},""]
[{"$f":"IFERROR(INDEX(ПолеКто,MATCH(0,COUNTIF($A$2:A128,ПолеКто),0)),\"\")","v":""},""]
[{"$f":"IFERROR(INDEX(ПолеКто,MATCH(0,COUNTIF($A$2:A129,ПолеКто),0)),\"\")","v":""},""]
[{"$f":"IFERROR(INDEX(ПолеКто,MATCH(0,COUNTIF($A$2:A130,ПолеКто),0)),\"\")","v":""},""]
[{"$f":"IFERROR(INDEX(ПолеКто,MATCH(0,COUNTIF($A$2:A131,ПолеКто),0)),\"\")","v":""},{"$f":"IF(A132=\"\",\"\",ROW())","v":""}]